Cogmind - Beta 13 @@@ ROGUE MODE // 2024.07.02 @ 21:06:55 Player: mandos Result: Self-destructed Performance ------------- Evolutions (2) 1000 Regions Visited (5) 1000 Robots Destroyed (30) 150 Value Destroyed (675) 675 Prototype IDs (23) 460 Alien Tech Used (0) 0 Bonus (300) 300 TOTAL SCORE: 3585 Bonus ------- Aligned with FarCom 300 Cogmind --------- Core Integrity 286/550 Matter 253/400 Energy 100/100 System Corruption 0% Temperature Cool (9) Movement Core (500) Ox9 Location -8/Materials Parts ------- > --- POWER (2) -------- (None) > --- PROPULSION (3) --- (None) > --- UTILITY (4) ------ Small Storage Unit Large Storage Unit Medium Matter Pod Modified TNC > --- WEAPON (2) ------- Katana > --- INVENTORY (15) --- (None) Peak State ------------ > --- POWER ------------ Ion Engine Light Nuclear Core > --- PROPULSION ------- Light Treads Light Treads > --- UTILITY ---------- Small Storage Unit Large Storage Unit Medium Matter Pod Modified TNC > --- WEAPON ----------- Light Assault Rifle Grenade Launcher > --- INVENTORY -------- Light Ion Engine Beam Cannon Grenade Launcher [Rating: 17] Favorites ----------- Power Light Ion Engine Engine Light Ion Engine Power Core Light Nuclear Core Propulsion Light Treads Treads Light Treads Utility Large Storage Unit Storage Large Storage Unit Processor Targeting Computer Weapon Grenade Launcher Energy Gun EM Pulse Gun Energy Cannon Beam Cannon Ballistic Gun Assault Rifle Launcher Grenade Launcher Slashing Weapon Katana Build | -11 -10 -10 -10 -9 -8 ------- Run | Yrd Mat Min Exi Min Mat Slots Evolved 4 | . . . . . 4 Power 1 | . . . . . 1 Propulsion 1 | . . . . . 1 Utility 2 | . . . . . 2 Weapon . | . . . . . . Parts Attached 22 | 7 4 . . 2 9 Power 7 | 2 1 . . . 4 Engine 6 | 2 1 . . . 3 Core 1 | . . . . . 1 Reactor . | . . . . . . Propulsion 2 | 2 . . . . . Treads 2 | 2 . . . . . Leg . | . . . . . . Wheel . | . . . . . . Hover . | . . . . . . Flight . | . . . . . . Utility 6 | 1 2 . . 1 2 Device . | . . . . . . Storage 4 | 1 1 . . 1 1 Processor 2 | . 1 . . . 1 Hackware . | . . . . . . Protection . | . . . . . . Artifact . | . . . . . . Weapon 7 | 2 1 . . 1 3 Energy Gun 1 | 1 . . . . . Energy Cannon 1 | . . . . . 1 Ballistic Gun 2 | 1 . . . 1 . Ballistic Cannon . | . . . . . . Launcher 2 | . 1 . . . 1 Special Weapon . | . . . . . . Impact Weapon . | . . . . . . Slashing Weapon 1 | . . . . . 1 Piercing Weapon . | . . . . . . Special Melee Weapon . | . . . . . . Unidentified Prototypes . | . . . . . . Parts Lost 12 | . . . . 2 10 Power 4 | . . . . . 4 Propulsion 2 | . . . . . 2 Utility 1 | . . . . 1 . Weapon 5 | . . . . 1 4 Highest Loss Streak 6 | . . . . 2 6 To Critical Strikes . | . . . . . . Average Slot Usage (%) 93 | . 97 100 100 85 86 Engine 14 | . 14 14 14 14 14 Treads 23 | . 28 28 28 28 16 Storage 19 | . 14 14 14 23 26 Processor 10 | . 11 14 14 . 8 Ballistic Gun 10 | . 14 14 14 3 8 Launcher 11 | . 13 14 14 14 7 Naked Turns . | . . . . . . Heaviest Build 43 | 14 28 28 28 29 43 Greatest Support 40 | 40 40 40 40 40 40 Greatest Overweight (x) 12 | . . . . . 12 Average Overweight (x) . | . . . . . . Largest Inventory Capacity 15 | 8 15 15 15 15 15 Average Capacity 13 | 7 8 15 15 15 15 Most Carried 6 | 1 5 5 6 6 4 Average Carried 3 | . 3 5 5 5 2 Final Capacity 15 | 8 15 15 15 15 15 Final Carried 6 | 1 5 5 6 5 . Class Distribution -------------------- 100% | Mutant Dominant Class ---------------- Mutant | -10/Materials Mutant | -10/Mines Mutant | -10/Exiles Mutant | -9/Mines Mutant | -8/Materials Resources | -11 -10 -10 -10 -9 -8 ----------- Run | Yrd Mat Min Exi Min Mat Matter Collected 703 | 192 56 35 . 211 209 Remotely . | . . . . . . Salvage Created 478 | . 240 53 . 23 162 Parts 51 | . 23 . . 10 18 Haulers Intercepted 1 | . 1 . . . . Recyclers Shooed . | . . . . . . Parts Field Recycled . | . . . . . . Retrieved Matter . | . . . . . . Parts Self-Destructed . | . . . . . . Prevented . | . . . . . . Kills | -11 -10 -10 -10 -9 -8 ------- Run | Yrd Mat Min Exi Min Mat Combat Hostiles Destroyed 23 | . 8 2 . 6 7 Guns 4 | . 2 . . 1 1 Cannons 2 | . . . . . 2 AOE 17 | . 6 2 . 5 4 Classes Destroyed 6 | . 6 . . . . Worker 1 | . 1 . . . . Builder 3 | . 2 . . . 1 Hauler 1 | . 1 . . . . Watcher 2 | . 2 . . . . Swarmer 12 | . 3 . . 6 3 Grunt 11 | . 5 2 . . 4 Best Kill Streak 8 | . 8 2 . 3 5 Combat Bots Only 5 | . 5 2 . 3 5 Max Kills in Single Turn 2 | . 2 1 . 2 2 Gunslinging . | . . . . . . Exploded 2 | . 2 1 . 2 2 Melee . | . . . . . . Uniques/NPCs Destroyed . | . . . . . . Combat | -11 -10 -10 -10 -9 -8 -------- Run | Yrd Mat Min Exi Min Mat Hostile Shots Fired 137 | . 32 5 . 20 80 Missed 42 | . 15 3 . 3 21 Damage Taken 1453 | . 205 35 . 251 962 Core 372 | . 30 . . 78 264 Absorbed by Shields . | . . . . . . Core Remaining (%) 78 | 100 . . . 56 . Volleys Fired 46 | . 18 4 . 7 17 Largest 2 | . 2 2 . 2 2 Hottest 90 | . 50 50 . 50 90 Shots Fired 76 | . 31 7 . 12 26 Gun 39 | . 18 4 . 5 12 Cannon 7 | . . . . . 7 Launcher 30 | . 13 3 . 7 7 Special . | . . . . . . Kinetic 39 | . 18 4 . 5 12 Thermal 7 | . . . . . 7 Explosive 30 | . 13 3 . 7 7 Electromagnetic . | . . . . . . Robot Hit Streak 6 | . 5 1 . 4 6 Robot Miss Streak 5 | . 2 2 . 3 5 Penetration Max . | . . . . . . Secondary Targets . | . . . . . . Shots Hit Robots 34 | . 16 1 . 5 12 Core Hits 59 | . 24 5 . 6 24 Critical Kills . | . . . . . . Critical Parts Destroyed . | . . . . . . Critical Strikes . | . . . . . . Melee Attacks . | . . . . . . Impact . | . . . . . . Slashing . | . . . . . . Piercing . | . . . . . . Sneak Attacks . | . . . . . . Combat Hostiles . | . . . . . . Follow-up Attacks . | . . . . . . Damage Inflicted 1960 | . 890 175 . 308 587 Guns 223 | . 106 22 . 23 72 Cannons 52 | . . . . . 52 Explosions 1684 | . 783 153 . 285 463 Melee . | . . . . . . Ramming 1 | . 1 . . . . Kinetic 223 | . 106 22 . 23 72 Thermal 52 | . . . . . 52 Explosive 1684 | . 783 153 . 285 463 Electromagnetic . | . . . . . . Impact . | . . . . . . Slashing . | . . . . . . Piercing . | . . . . . . Highest Corruption . | . . . . . . Average Corruption . | . . . . . . Corruption Purged . | . . . . . . Corruption Blocked . | . . . . . . Overload Shots . | . . . . . . Overflow Damage 61 | . . . . 42 19 Projectiles . | . . . . . . Explosions 61 | . . . . 42 19 Melee . | . . . . . . Knockbacks . | . . . . . . Impact . | . . . . . . Kinetic . | . . . . . . Secondary . | . . . . . . Self-Inflicted Damage 253 | . 24 . . 115 114 Shots 9 | . 1 . . 4 4 Rammed 1 | . 1 . . . . Targets Rammed 1 | . 1 . . . . Kicked . | . . . . . . Crushed . | . . . . . . Highest Temperature 106 | . 5 5 . . 106 Average Temperature 26 | . 2 3 . . 33 Received Heat Transfer 429 | . 69 18 . . 342 Siege Activations . | . . . . . . Robots Corrupted . | . . . . . . Combat Hostiles . | . . . . . . Parts Fried . | . . . . . . Impact Corruptions . | . . . . . . Robots Melted . | . . . . . . Combat Hostiles . | . . . . . . Parts Melted . | . . . . . . Heat Transferred 111 | . . . . . 111 Parts Sabotaged . | . . . . . . Parts Stolen . | . . . . . . Parts Stripped . | . . . . . . Power Chain Reactions . | . . . . . . Alert | -11 -10 -10 -10 -9 -8 ------- Run | Yrd Mat Min Exi Min Mat Peak Influence 333 | . 333 114 . 169 231 Initial 65 | . . 51 . . 65 Average 95 | . 135 83 . 107 84 Maximum Alert Level 1 | . 1 . . . 1 Low Security (%) 86 | 100 61 100 . 100 92 Level 1 13 | . 38 . . . 7 Level 2 . | . . . . . . Level 3 . | . . . . . . Level 4 . | . . . . . . Level 5 . | . . . . . . High Security . | . . . . . . Max Security . | . . . . . . Squads Dispatched 3 | . 2 . . . 1 Investigation 1 | . 1 . . . . Extermination . | . . . . . . Reinforcement 2 | . 1 . . . 1 Assault . | . . . . . . Garrison . | . . . . . . Intercept . | . . . . . . Searches Triggered . | . . . . . . Construction Impeded . | . . . . . . Haulers Reinforced . | . . . . . . Active Scanning Responses . | . . . . . . Cargo Convoy Interrupts . | . . . . . . Stealth | -11 -10 -10 -10 -9 -8 --------- Run | Yrd Mat Min Exi Min Mat Distress Signals 3 | . 1 . . . 2 Communications Jammed . | . . . . . . Distress Signals . | . . . . . . Times Spotted 32 | . 11 2 . 6 13 Peak Tracking Total 6 | . 5 2 . 3 6 Tactical Retreats . | . . . . . . Traps | -11 -10 -10 -10 -9 -8 ------- Run | Yrd Mat Min Exi Min Mat Traps Triggered . | . . . . . . Indirectly . | . . . . . . Trap Hack Attempts . | . . . . . . Triggered . | . . . . . . Disarmed . | . . . . . . Reprogrammed . | . . . . . . Reused . | . . . . . . Traps Extracted . | . . . . . . Installed . | . . . . . . Triggered . | . . . . . . Machines | -11 -10 -10 -10 -9 -8 ---------- Run | Yrd Mat Min Exi Min Mat Machines Disabled 4 | . 2 . . . 2 Max in Single Turn 1 | . 1 . . . 1 Machines Repaired . | . . . . . . Machines Dismantled . | . . . . . . Machines Sabotaged . | . . . . . . Overloaded Fab Kills . | . . . . . . Hacking | -11 -10 -10 -10 -9 -8 --------- Run | Yrd Mat Min Exi Min Mat Machines Accessed 3 | . 2 . 1 . . Terminals 2 | . 2 . . . . Fabricators . | . . . . . . Repair Stations . | . . . . . . Recycling Units . | . . . . . . Scanalyzers . | . . . . . . Garrison Access . | . . . . . . Total Hacks 6 | . 5 . 1 . . Successful 1 | . . . 1 . . Failed 5 | . 5 . . . . Catastrophic 2 | . 2 . . . . Database Lockouts . | . . . . . . Manual 6 | . 5 . 1 . . Terminals 5 | . 5 . . . . Fabricators . | . . . . . . Repair Stations . | . . . . . . Recycling Units . | . . . . . . Scanalyzers . | . . . . . . Garrison Access . | . . . . . . Terminal Hacks 1 | . . . 1 . . Derelict Proto ID Bank 1 | . . . 1 . . Fabricator Hacks . | . . . . . . Repair Station Hacks . | . . . . . . Recycling Unit Hacks . | . . . . . . Scanalyzer . | . . . . . . Garrison Access Hacks . | . . . . . . Unauthorized Hacks . | . . . . . . Terminals . | . . . . . . Fabricators . | . . . . . . Repair Stations . | . . . . . . Recycling Units . | . . . . . . Scanalyzers . | . . . . . . Garrison Access . | . . . . . . Data Cores Recovered . | . . . . . . Used . | . . . . . . Hacking Detections 2 | . 2 . . . . Full Trace Events 2 | . 2 . . . . Feedback Events . | . . . . . . Feedback Blocked . | . . . . . . Robot Schematics Acquired . | . . . . . . Robots Built . | . . . . . . Authchips . | . . . . . . Time . | . . . . . . Total Robot Build Rating . | . . . . . . Part Schematics Acquired . | . . . . . . Parts Built . | . . . . . . Authchips . | . . . . . . Time . | . . . . . . Total Part Build Rating . | . . . . . . Parts Repaired . | . . . . . . Time . | . . . . . . Parts Recycled . | . . . . . . Recycled Matter . | . . . . . . Retrieved Matter . | . . . . . . Retrieved Components . | . . . . . . Parts Scanalyzed . | . . . . . . Part Schematics Acquired . | . . . . . . Parts Damaged . | . . . . . . Bothacking | -11 -10 -10 -10 -9 -8 ------------ Run | Yrd Mat Min Exi Min Mat Used RIF Installer . | . . . . . . Robots Hacked . | . . . . . . Non-combat . | . . . . . . Combat . | . . . . . . Robot Hacks Applied . | . . . . . . Relay Couplers Released . | . . . . . . Fabnet Peak Effective % . | . . . . . . Robots Rewired . | . . . . . . Allies Hacked . | . . . . . . Hacks Repelled . | . . . . . . Allies | -11 -10 -10 -10 -9 -8 -------- Run | Yrd Mat Min Exi Min Mat Total Allies . | . . . . . . Largest Group . | . . . . . . Highest-Rated Group . | . . . . . . Highest-Rated Ally . | . . . . . . Total Orders . | . . . . . . Ally Attacks . | . . . . . . Total Damage . | . . . . . . Kills . | . . . . . . Allies Corrupted . | . . . . . . Allies Melted . | . . . . . . Intel | -11 -10 -10 -10 -9 -8 ------- Run | Yrd Mat Min Exi Min Mat Robot Analysis Total . | . . . . . . Derelict Logs Recovered . | . . . . . . Drone Launches . | . . . . . . Drone Recoveries . | . . . . . . Exploration | -11 -10 -10 -10 -9 -8 ------------- Run | Yrd Mat Min Exi Min Mat Turns Passed 2013 | 76 415 227 376 154 765 Spaces Moved 843 | 44 223 136 235 83 122 Core 8 | 3 . . . . 5 Treads 835 | 41 223 136 235 83 117 Legs . | . . . . . . Wheels . | . . . . . . Hover . | . . . . . . Flight . | . . . . . . Fastest Speed 50 | 50 160 160 160 160 160 Average Speed 168 | 152 160 160 160 160 218 Slowest Speed 650 | 160 160 160 160 160 650 Overloaded Moves . | . . . . . . Propulsion Burnouts . | . . . . . . Robots Hopped . | . . . . . . Cave-ins Triggered . | . . . . . . Exploration Rate (%) 32 | 4 53 37 61 24 16 Regions Visited 5 Branch Regions 3 Pre-discovered Areas . | . . . . . . Known Exits Taken . | . . . . . . Unknown Exits Taken 5 | 1 1 1 1 1 . Scrap Searched . | . . . . . . Spaces Dug 13 | . . . . . 13 Terrain Destroyed 152 | . 51 16 . 50 35 Melee . | . . . . . . Projectile . | . . . . . . AOE 152 | . 51 16 . 50 35 Terrain Rammed . | . . . . . . Walls Destroyed . | . . . . . . Machines Disabled . | . . . . . . Actions | -11 -10 -10 -10 -9 -8 --------- Run | Yrd Mat Min Exi Min Mat Total 1359 | 50 248 139 235 92 595 Wait 446 | . . . . . 446 Move 838 | 43 222 135 234 82 122 Hop . | . . . . . . Pick Up 4 | . 2 . 1 . 1 Fast Attach 11 | 6 2 . . 2 1 Attach 7 | . . . . . 7 Detach . | . . . . . . Swap 4 | 1 2 . . . 1 Drop 2 | . 1 . . 1 . Fire 46 | . 18 4 . 7 17 Melee . | . . . . . . Ram . | . . . . . . Kick . | . . . . . . Crush 1 | . 1 . . . . Escape Stasis . | . . . . . . Rewire . | . . . . . . Trap . | . . . . . . Miscellaneous . | . . . . . . Route ------- -11/Scrapyard -10/Materials -10/Mines -10/Exiles -9/Mines -8/Materials History --------- Turn | Location | Event 27 | -11/Scrapyard | Discovered new exit (range 15) 77 | -11/Scrapyard | Entered Materials 303 | -10/Materials | Build established: Mutant 371 | -10/Materials | Discovered new exit (range 15) 492 | -10/Materials | Entered Mines 593 | -10/Mines | Met a Derelict bent on vengeance 713 | -10/Mines | Deemed a non-threat by the Exiles lab entrance 713 | -10/Mines | Discovered new exit (range 5) 719 | -10/Mines | Entered Exiles 764 | -10/Exiles | Met 8R-AWN 788 | -10/Exiles | Met EX-HEX 836 | -10/Exiles | Met EX-BIN 859 | -10/Exiles | Aligned with FarCom system 860 | -10/Exiles | Given EX-Vault access code 902 | -10/Exiles | Opened EX-Vault 913 | -10/Exiles | Found Modified TNC 948 | -10/Exiles | Warned to stay clear of 0b10 Research branches 968 | -10/Exiles | Exiles lab attacked by MAIN.C 1072 | -10/Exiles | Discovered new exit (range 14) 1095 | -10/Exiles | Left Exiles lab with Modified TNC 1095 | -10/Exiles | Entered Mines 1216 | -9/Mines | Discovered new exit (range 15) 1249 | -9/Mines | Entered Materials 1249 | -8/Materials | Evolved 4 slots: Power x1, Propulsion x1, Utility x2 1961 | -8/Materials | Lost 3 parts (1n2w) 2014 | -8/Materials | Self-destructed Last Messages --------------- 01949_ U-05 Engineer lays Concrete. 01952_ U-05 Engineer builds a Wall. 01953_ U-05 Engineer lays Concrete. 01961_ U-05 Engineer builds a Wall. 01961_ U-05 Engineer lays Concrete. 01965_ U-05 Engineer builds a Wall. 01965_ U-05 Engineer lays Concrete. 01966_ U-05 Engineer destroyed. 01970_ Ion Engine destroyed. 01976_ Lgt. Treads destroyed. 01979_ Grenade Launcher destroyed. 01981_ K-01 Serf collects debris. 01987_ Lgt. Nuclear Core destroyed. 01997_ Critical hit (Burn: +37). 02001_ Acquired 60 matter. 02001_ U-05 Engineer builds a Wall. 02008_ Acquired 69 matter. 02010_ U-05 Engineer builds a Wall. 02011_ Beam Cannon destroyed. 02012_ Lgt. Ion Engine destroyed. Map ----- +----------------------------------------------------+ | ?????????????????????????????????????????????????? | | ?????????????????????????????????????????????????? | | ?????????????????????????????????????????????????? | | ???????????????????????????????????????????????? ? | | ???????????????????????????????????????????????# ? | | ???????????????????????????????????????????????# # | | ???????????????????????????????????????????????# # | | ???????????????????????????????????????????????# # | | ???????????????????????????????????????????????# # | | ??????????????????????????????????????########?# | | ??????????????????????????????????????# =### | | ????????????????????????????########??# """ # | | ????????????????????????????# #??# """ # | | ????????????????????????????# """ #??# """ # a | | ????????????????????????????# """ #??# # | | ???????????????a????????????# """ #??# # | | ????????????????????????????# ########+## | | ????????????????????######### """ # | | ????????????????????# # """ + | | ????????????????????# """ # """ # | | ????????????????????# ! "R" # #! #####+## | | ????????????#####+??# " " # "" #%=# # | | ??????????? # =+[!+ """# | | ??????????? /Y k #! = #### """# | | ??????????? # u# !%= =#### """# | | ????????????? ?????# ]@ # !####??# # | | ????????????????????# ! ]%% #######???# # | | ????????????????????# %%% #?????????######## | | ????????????????????# Y #????????????????# | | ????????????????????### #####????????????????# | | ??????????????????????##?????????????????????# | | ????a????????????????????????????????????????# | | ?????????????????????????????????????????????# | | ?????????????????????????????????????????????# | | ?????????????????????????????????????????????# | | ?????????????????????????????????????????????# | | ?????????????????????????????????????????????# | | ?????????????????????????????????????????????# | | ?????????????????????????????????????????????# | | ??????????????????????????????????????????#######+ | | ??????????????????????????????????????????# | | ?????????????????ss???????????????????????# | | ??????????????????????????????????????????# | | ??????????????????????????????????????????# | | ??????????????????????????????????????????# | | ??????????????????????????????????????????# | | ??????????????????????????????????????????# | | ??????????????????????????????????????????# | | ??????????????????????????????????????????# | | ??????????????????????????????????????????######## | +----------------------------------------------------+ Best States ------------- Heat Dissipation 31 Energy Generation 19 Energy Capacity 310 Matter Stores 243 Matter Capacity 400 Sight Range 16 Terrain Scan Density 10 Evasion (%) 40 Targeting Accuracy 5 Recoil Reduction 2 Item Schematics ----------------- None Robot Schematics ------------------ None Fabricated ------------ Nothing Alien Tech Used ----------------- None Achievements -------------- None Challenges ------------ None Game ------ Seed HeavyGravityWings Manual? 0 Play Time 00:13:20 Cumulative 5.2 hours Start 2024.07.02 @ 20:53:34 End 2024.07.02 @ 21:06:55 Sessions 1 Manual Loads 0 Difficulty Rogue Special Mode None Game No. 9 Rogue 9 Adventurer 0 Explorer 0 Win Type - Total 0 Types 0/0/0/0/0/0/0/0/0 Lore% 8 Gallery% 10 Achievement% 10 Wizard Run 0 Options --------- Layout 0 ASCII 0 Keyboard 0 Movement Mouse Keybinds 0 Fullscreen 1 Font 24/Smallcaps Map View 76x50 Zoom Use 0% Tactical HUD 1 Map Filters NONE Filters NONE Steam 1 RUN: 3f304bad-c29f-4361-85e0-83d535cc0621